lending/lending_fUSD_20250114
["ID","MTS","AMOUNT","RATE_DAILY","PERIOD"]
[348911510,1736871074577,-1149.97,0.00011885,2]
[348911511,1736871074587,-496.72955714,0.00011885,2]
[348911512,1736871074596,-1199.59,0.00011885,2]
[348911513,1736871074605,-500.0,0.00011885,2]
[348911514,1736871074614,-1173.44,0.00011885,2]
[348911515,1736871074624,-500.0,0.00011885,2]
[348911516,1736871074633,-500.0,0.00011885,2]
[348911517,1736871074642,-500.0,0.00011885,2]
[348911518,1736871074651,-1112.26,0.00011885,2]
[348911519,1736871074660,-500.0,0.00011885,2]
[348911520,1736871074669,-500.0,0.00011885,2]
[348911521,1736871074679,-2438.93,0.00011885,2]
[348911522,1736871074689,-500.0,0.00011885,2]
[348911523,1736871074699,-500.0,0.00011885,2]
[348911524,1736871074708,-1224.09,0.00011885,2]
[348911525,1736871074722,-500.0,0.00011885,2]
[348911526,1736871074732,-500.0,0.00011885,2]
[348911527,1736871074742,-500.0,0.00011885,2]
[348911528,1736871074751,-1303.65,0.00011885,2]
[348911529,1736871074761,-500.0,0.00011885,2]
[348911530,1736871074771,-276.50933431,0.00011885,2]
[348911531,1736871074781,-603.91,0.00011885,2]
[348911532,1736871074790,-1278.65,0.00011885,2]
[348911533,1736871074800,-500.0,0.00011885,2]
[348911534,1736871074810,-500.0,0.00011885,2]
[348911535,1736871074821,-1228.06,0.00011885,2]
[348911536,1736871074831,-500.0,0.00011885,2]
[348911537,1736871074841,-500.0,0.00011885,2]
[348911538,1736871074851,-1408.95,0.00011885,2]
[348911539,1736871074860,-500.0,0.00011885,2]
[348911540,1736871074870,-500.0,0.00011885,2]
[348911541,1736871074880,-532.6974371,0.00011885,2]
[348911542,1736871074890,-908.24,0.00011885,2]
[348911543,1736871074899,-500.0,0.00011885,2]
[348911544,1736871074909,-500.0,0.00011885,2]
[348911545,1736871074919,-1406.37,0.00011885,2]
[348911546,1736871074932,-305.77866609,0.00011885,2]
[348911547,1736871074942,-884.27,0.00011885,2]
[348911548,1736871074952,-1171.53,0.00011885,2]
[348911549,1736871074964,-500.0,0.00011885,2]
[348911550,1736871074975,-647.63,0.00011885,2]
[348911551,1736871074984,-1113.11,0.00011885,2]
[348911552,1736871074994,-991.47,0.00011885,2]
[348911553,1736871075005,-500.0,0.00011885,2]
[348911554,1736871075016,-1161.34,0.00011885,2]
[348911555,1736871075026,-1071.23,0.00011885,2]
[348911556,1736871075036,-789.98,0.00011885,2]
[348911557,1736871075045,-500.0,0.00011885,2]
[348911558,1736871075055,-1106.63,0.00011885,2]
[348911559,1736871075065,-1112.53,0.00011885,2]
[348911560,1736871075075,-500.0,0.00011885,2]
[348911561,1736871075084,-1838.88,0.00011885,2]
[348911562,1736871075094,-932.16,0.00011885,2]
[348911563,1736871075103,-500.0,0.00011885,2]
[348911564,1736871075113,-500.0,0.00011885,2]
[348911565,1736871075123,-500.0,0.00011885,2]
[348911566,1736871075132,-500.0,0.00011885,2]
[348911567,1736871075142,-289.66,0.00011885,2]
[348911568,1736871075152,-500.0,0.00011885,2]
[348911569,1736871075162,-976.4,0.00011885,2]
[348911570,1736871075173,-1337.66,0.00011885,2]
[348911571,1736871075182,-500.0,0.00011885,2]
[348911572,1736871075192,-572.39,0.00011885,2]
[348911573,1736871075202,-500.0,0.00011885,2]
[348911574,1736871075214,-758.83,0.00011885,2]
[348911575,1736871075225,-1232.64,0.00011885,2]
[348911576,1736871075235,-500.0,0.00011885,2]
[348911577,1736871075246,-1161.72,0.00011885,2]
[348911578,1736871075255,-500.0,0.00011885,2]
[348911579,1736871075265,-1402.03,0.00011885,2]
[348911580,1736871075274,-500.0,0.00011885,2]
[348911581,1736871075284,-500.0,0.00011885,2]
[348911582,1736871075294,-334.54,0.00011885,2]
[348911583,1736871075304,-1098.11,0.00011885,2]
[348911584,1736871075314,-3138.43,0.00011885,2]
[348911585,1736871075323,-500.0,0.00011885,2]
[348911586,1736871075333,-659.72,0.00011885,2]
[348911587,1736871075343,-986.15,0.00011885,2]
[348911588,1736871075353,-202.09,0.00011885,2]
[348911589,1736871075363,-500.0,0.00011885,2]
[348911590,1736871075373,-305.32,0.00011885,2]
[348911591,1736871075383,-1032.34,0.00011885,2]
[348911592,1736871075393,-3452.91,0.00011885,2]
[348911593,1736871075403,-1606.61,0.00011885,2]
[348911594,1736871075413,-500.0,0.00011885,2]
[348911595,1736871075423,-500.0,0.00011885,2]
[348911596,1736871075433,-1003.31,0.00011885,2]
[348911597,1736871075443,-979.54,0.00011885,2]
[348911598,1736871075452,-756.85,0.00011885,2]
[348911599,1736871075463,-4038.71,0.00011885,2]
[348911600,1736871075473,-1623.91,0.00011885,2]
[348911601,1736871075484,-500.0,0.00011885,2]
[348911602,1736871075494,-507.27,0.00011885,2]
[348911603,1736871075504,-500.0,0.00011885,2]
[348911604,1736871075514,-500.0,0.00011885,2]
[348911605,1736871075525,-1966.64,0.00011885,2]
[348911606,1736871075535,-986.12,0.00011885,2]
[348911607,1736871075544,-1121.12,0.00011886,2]
[348911608,1736871075555,-500.0,0.00011886,2]
[348911609,1736871075564,-2873.51,0.00011886,2]
[348911610,1736871075574,-2691.6,0.00011886,2]
[348911611,1736871075584,-151.0,0.00011888,2]
[348911612,1736871075594,-5000.0,0.000119,2]
[348911613,1736871075604,-564.80212402,0.000119,2]
[348911614,1736871075614,-250.46607304,0.000119,2]
[348911615,1736871075624,-231.95039053,0.000119,2]
[348911616,1736871075634,-231.95039045,0.000119,2]
[348911617,1736871075644,-231.95039045,0.000119,2]
[348911618,1736871075654,-231.95039045,0.000119,2]
[348911619,1736871075664,-231.95039045,0.000119,2]
[348911620,1736871075674,-231.95039045,0.000119,2]
[348911621,1736871075685,-3648.35,0.00011916,2]
[348911622,1736871075694,-500.0,0.00011917,2]
[348911623,1736871075704,-1024.77,0.00011917,2]
[348911624,1736871075716,-535.76,0.00011951,2]
[348911625,1736871075725,-1760.13569846,0.00011969,2]
[348911626,1736871075735,-300.0,0.00011999,2]
[348911627,1736871075744,-300.0,0.00011999,2]
[348911628,1736871075754,-300.0,0.00011999,2]
[348911629,1736871075764,-300.0,0.00011999,2]
[348911630,1736871075775,-304.65640141,0.00011999,2]
[348911631,1736871075784,-300.0,0.00011999,2]
[348911632,1736871075794,-1216.02312721,0.00012,10]
[348911633,1736871075804,-9730.06965591,0.00012,2]
[348911634,1736871076164,-10942.7135776,0.00012,2]
[348911635,1736871076178,-669.99823175,0.00012,2]
[348911636,1736871076189,-4220.74957971,0.00012,2]
[348911637,1736871076202,-9689.9999999,0.00012,2]
[348911638,1736871076229,-26357.1335371,0.00012,2]
[348911639,1736871076240,-358.97,0.00012,2]
[348911640,1736871076250,-1060.02,0.00012,2]
[348911641,1736871076259,-32001.36120043,0.00012,2]
[348911642,1736871076269,-758.7172598,0.00012,2]
[348911643,1736871076278,-38008.7954032,0.00012,2]
[348911644,1736871076288,-9337.78129142,0.00012,2]
[348911645,1736871076297,-1219.97144277,0.00012,3]
[348911646,1736871076306,-105273.37564131,0.00012,2]
[348911647,1736871076318,-279.714,0.00012,2]
[348911648,1736871076329,-348.94648209,0.00012,2]
[348911649,1736871076340,-451.63100164,0.00012,2]
[348911650,1736871076419,-308.11380428,0.00012,2]
[348911651,1736871076430,-6229.36169738,0.00012,2]
[348911652,1736871076442,-245925.92633559,0.00012,2]
[348911653,1736871076453,-18675.09157636,0.00012,2]
[348911654,1736871076468,-44796.00034188,0.00012,2]
[348911655,1736871076480,-169686.96010822,0.00012,2]
[348911656,1736871076489,-10000.0,0.00012,8]
[348911657,1736871076498,-768.41227389,0.00012,3]
[348911658,1736871076508,-50000.0,0.00012,2]
[348911659,1736871076518,-224.539635,0.00012,2]
[348911660,1736871076528,-224.539635,0.00012,2]
[348911661,1736871076537,-5275.69499463,0.00012,4]
[348911662,1736871076547,-287.205552,0.00012,2]
[348911663,1736871076556,-211.956054,0.00012,2]
[348911664,1736871076566,-100000.0,0.00012,7]
[348911665,1736871076575,-300.0,0.00012048,2]
[348911666,1736871076585,-2856.47,0.00012049,2]
[348911667,1736871076595,-758.96,0.00012049,2]
[348911668,1736871076605,-500.0,0.00012049,2]
[348911669,1736871076614,-500.0,0.00012049,2]
[348911670,1736871076623,-500.0,0.00012049,2]
[348911671,1736871076633,-500.0,0.00012049,2]
[348911672,1736871076642,-909.28,0.00012049,2]
[348911673,1736871076652,-623.488067,0.00012049,2]
[348911674,1736871076662,-500.0,0.00012049,2]
[348911675,1736871076672,-1419.13,0.00012049,2]
[348911676,1736871076682,-580.83,0.00012049,2]
[348911677,1736871076691,-1079.36,0.00012049,2]
[348911678,1736871076701,-500.0,0.00012049,2]
[348911679,1736871076711,-781.46,0.00012049,2]
[348911680,1736871076724,-1965.67,0.00012049,2]
[348911681,1736871076734,-770.01,0.00012049,2]
[348911682,1736871076745,-846.81,0.00012049,2]
[348911683,1736871076755,-500.0,0.00012049,2]
[348911684,1736871076764,-2006.35,0.00012049,2]
[348911685,1736871076774,-654.46,0.00012049,2]
[348911686,1736871076783,-500.0,0.00012049,2]
[348911687,1736871076793,-901.18,0.00012049,2]
[348911688,1736871076802,-500.0,0.00012049,2]
[348911689,1736871076812,-500.0,0.00012049,2]
[348911690,1736871076822,-1306.8,0.00012049,2]
[348911691,1736871076831,-500.0,0.00012049,2]
[348911692,1736871076840,-500.0,0.00012049,2]
[348911693,1736871076850,-500.0,0.00012049,2]
[348911694,1736871076860,-500.0,0.00012049,2]
[348911695,1736871076871,-500.0,0.00012049,2]
[348911696,1736871076880,-3230.9,0.00012049,2]
[348911697,1736871076889,-635.34,0.00012049,2]
[348911698,1736871076899,-898.98,0.00012049,2]
[348911699,1736871076909,-2567.78,0.00012049,2]
[348911700,1736871076920,-1137.06,0.00012049,2]
[348911701,1736871076933,-3490.51,0.00012049,2]
[348911702,1736871076943,-500.0,0.00012049,2]
[348911703,1736871076952,-500.0,0.00012049,2]
[348911704,1736871076963,-500.0,0.00012049,2]
[348911705,1736871076972,-4025.46,0.00012049,2]
[348911706,1736871076982,-500.0,0.00012049,2]
[348911707,1736871076993,-1007.3,0.00012049,2]
[348911708,1736871077003,-750.73,0.00012049,2]
[348911709,1736871077014,-1091.89,0.00012049,2]
[348911710,1736871077024,-1201.57,0.00012049,2]
[348911711,1736871077034,-500.0,0.00012049,2]
[348911712,1736871077045,-1990.98,0.00012049,2]
[348911713,1736871077054,-500.0,0.00012049,2]
[348911714,1736871077063,-4203.17,0.00012049,2]
[348911715,1736871077072,-1232.44,0.00012049,2]
[348911716,1736871077081,-794.71,0.00012049,2]
[348911717,1736871077091,-500.0,0.00012049,2]
[348911718,1736871077101,-500.0,0.00012049,2]
[348911719,1736871077111,-747.81,0.00012049,2]
[348911720,1736871077121,-500.0,0.00012049,2]
[348911721,1736871077130,-867.01,0.00012049,2]
[348911722,1736871077139,-1759.37,0.00012049,2]
[348911723,1736871077148,-500.0,0.00012049,2]
[348911724,1736871077158,-1686.06,0.00012049,2]
[348911725,1736871077168,-780.53,0.00012049,2]
[348911726,1736871077177,-825.75,0.00012049,2]
[348911727,1736871077186,-1495.35,0.00012049,2]
[348911728,1736871077196,-2775.69,0.00012049,2]
[348911729,1736871077205,-680.38,0.00012049,2]
[348911730,1736871077218,-500.0,0.0001205,2]
[348911731,1736871077227,-500.0,0.0001205,2]
[348911732,1736871077236,-500.0,0.0001205,2]
[348911733,1736871077245,-500.0,0.0001205,2]
[348911734,1736871077254,-500.0,0.0001205,2]
[348911735,1736871077263,-553.36526145,0.0001205,2]
[348911736,1736871077273,-500.0,0.0001205,2]
[348911737,1736871077283,-989.66,0.0001205,2]
[348911738,1736871077292,-500.0,0.0001205,2]
[348911739,1736871077302,-500.0,0.0001205,2]
[348911740,1736871077311,-1178.11,0.0001205,2]
[348911741,1736871077321,-500.0,0.0001205,2]
[348911742,1736871077330,-1018.69,0.0001205,2]
[348911743,1736871077340,-500.0,0.0001205,2]
[348911744,1736871077350,-1169.13,0.0001205,2]
[348911745,1736871077360,-443.19361815,0.0001205,2]
[348911746,1736871077369,-500.0,0.0001205,2]
[348911747,1736871077378,-761.68,0.0001205,2]
[348911748,1736871077387,-500.0,0.0001205,2]
[348911749,1736871077397,-500.0,0.0001205,2]
[348911750,1736871077406,-500.0,0.0001205,2]
[348911751,1736871077415,-500.0,0.00012054,2]
[348911752,1736871077425,-200.0,0.00012055,2]
[348911753,1736871077436,-238.67,0.00012055,2]
[348911754,1736871077447,-231.95039045,0.00012083,2]
[348911755,1736871077456,-5000.0,0.00012098,3]
[348911756,1736871077467,-1134.687651,0.0001215,2]
[348911757,1736871077477,-5067.93,0.0001215,2]
[348911758,1736871077487,-1401.93,0.0001215,2]
[348911759,1736871077496,-772.78,0.0001215,2]
[348911760,1736871077506,-500.0,0.0001215,2]
[348911761,1736871077516,-500.0,0.0001215,2]
[348911762,1736871077526,-5155.07,0.0001215,2]
[348911763,1736871077537,-603.01,0.0001215,2]
[348911764,1736871077546,-1620.19,0.0001215,2]
[348911765,1736871077555,-224.539635,0.00012151,2]
[348911766,1736871077565,-224.539635,0.00012151,2]
[348911767,1736871077575,-11226.25,0.00012151,2]
[348911768,1736871077584,-1592.98,0.00012151,2]
[348911769,1736871077595,-1029.22,0.00012151,2]
[348911770,1736871077604,-3058.42,0.00012151,2]
[348911771,1736871077616,-500.0,0.00012151,2]
[348911772,1736871077626,-1564.97,0.00012151,2]
[348911773,1736871077636,-2074.04,0.00012151,2]
[348911774,1736871077645,-1000.0,0.00012151,2]
[348911775,1736871077655,-2904.81,0.00012157,2]
[348911776,1736871077665,-4220.93,0.00012157,2]
[348911777,1736871077675,-2444.68,0.00012157,2]
[348911778,1736871077684,-500.0,0.00012157,2]
[348911779,1736871077694,-1614.87,0.00012157,2]
[348911780,1736871077703,-4028.3,0.00012157,2]
[348911781,1736871077713,-1618.39,0.00012157,2]
[348911782,1736871077723,-886.17,0.00012157,2]
[348911783,1736871077733,-1130.9,0.00012157,2]
[348911784,1736871077742,-525.88853608,0.00012157,2]
[348911785,1736871077752,-500.0,0.00012157,2]
[348911786,1736871077761,-729.07,0.00012157,2]
[348911787,1736871077771,-1516.25,0.00012158,2]
[348911788,1736871077780,-1166.86,0.00012158,2]
[348911789,1736871077790,-866.05,0.00012158,2]
[348911790,1736871077800,-2203.87,0.00012158,2]
[348911791,1736871077810,-916.24,0.00012158,2]
[348911792,1736871077820,-3485.69,0.00012158,2]
[348911793,1736871077829,-1636.73,0.00012158,2]
[348911794,1736871077840,-3444.85,0.00012158,2]
[348911795,1736871077850,-1321.96,0.00012158,2]
[348911796,1736871077860,-10463.04,0.00012158,2]
[348911797,1736871077869,-1265.15,0.00012158,2]
[348911798,1736871077879,-1225.56,0.00012158,2]
[348911799,1736871077889,-1679.51,0.00012158,2]
[348911800,1736871077899,-1588.58,0.00012158,2]
[348911801,1736871077908,-4193.47,0.00012158,2]
[348911802,1736871077918,-2969.84,0.00012158,2]
[348911803,1736871077931,-1960.51,0.00012158,2]
[348911804,1736871077941,-3425.16,0.00012158,2]
[348911805,1736871077952,-683.13,0.00012158,2]
[348911806,1736871077961,-1742.27,0.00012158,2]
[348911807,1736871077971,-2066.36,0.00012158,2]
[348911808,1736871077981,-936.52,0.00012158,2]
[348911809,1736871077990,-1668.95,0.00012158,2]
[348911810,1736871078001,-2624.9,0.00012158,2]
[348911811,1736871078011,-1793.98,0.00012159,2]
[348911812,1736871078021,-4746.78,0.00012159,2]
[348911813,1736871078030,-2018.85,0.00012159,2]
[348911814,1736871078039,-198.99920892,0.00012159,2]
[348911815,1736871078049,-3920.54,0.00012159,2]
[348911816,1736871078059,-583.25,0.00012159,2]
[348911817,1736871078069,-856.09,0.00012159,2]
[348911818,1736871078078,-1159.82,0.00012159,2]
[348911819,1736871078088,-526.42,0.00012159,2]
[348911820,1736871078098,-1932.24,0.00012159,2]
[348911821,1736871078108,-862.17,0.00012159,2]
[348911822,1736871078118,-1142.27,0.00012159,2]
[348911823,1736871078127,-500.0,0.00012159,2]
[348911824,1736871078137,-1780.43,0.00012159,2]
[348911825,1736871078148,-500.0,0.00012159,2]
[348911826,1736871078158,-500.0,0.00012159,2]
[348911827,1736871078168,-500.0,0.00012159,2]
[348911828,1736871078178,-500.0,0.00012159,2]
[348911829,1736871078187,-1149.97,0.00012159,2]
[348911830,1736871078197,-500.0,0.00012159,2]
[348911831,1736871078207,-1199.59,0.00012159,2]
[348911832,1736871078220,-1173.44,0.00012159,2]
[348911833,1736871078229,-534.5,0.00012159,2]
[348911834,1736871078239,-500.0,0.00012159,2]
[348911835,1736871078249,-500.0,0.00012159,2]
[348911836,1736871078259,-1112.26,0.00012159,2]
[348911837,1736871078269,-500.0,0.00012159,2]
[348911838,1736871078279,-500.0,0.00012159,2]
[348911839,1736871078288,-2438.93,0.00012159,2]
[348911840,1736871078298,-500.0,0.00012159,2]
[348911841,1736871078309,-520.86,0.00012159,2]
[348911842,1736871078318,-1224.09,0.00012159,2]
[348911843,1736871078329,-500.0,0.00012159,2]
[348911844,1736871078339,-543.09,0.00012159,2]
[348911845,1736871078350,-500.0,0.00012159,2]
[348911846,1736871078360,-1303.65,0.00012159,2]
[348911847,1736871078371,-500.0,0.00012159,2]
[348911848,1736871078382,-603.91,0.00012159,2]
[348911849,1736871078393,-1278.65,0.00012159,2]
[348911850,1736871078404,-500.0,0.00012159,2]
[348911851,1736871078414,-1228.06,0.00012159,2]
[348911852,1736871078425,-500.0,0.00012159,2]
[348911853,1736871078435,-500.0,0.00012159,2]
[348911854,1736871078447,-1408.95,0.00012159,2]
[348911855,1736871078457,-358.59776977,0.00012159,2]
[348911856,1736871078468,-500.0,0.00012159,2]
[348911857,1736871078479,-908.24,0.00012159,2]
[348911858,1736871078490,-500.0,0.00012159,2]
[348911859,1736871078500,-500.0,0.00012159,2]
[348911860,1736871078511,-1406.37,0.00012159,2]
[348911861,1736871078521,-884.27,0.00012159,2]
[348911862,1736871078532,-1171.53,0.00012159,2]
[348911863,1736871078542,-176.51140065,0.00012159,2]
[348911864,1736871078552,-647.63,0.00012159,2]
[348911865,1736871078562,-1113.11,0.00012159,2]
[348911866,1736871078572,-991.47,0.00012159,2]
[348911867,1736871078582,-500.0,0.00012159,2]
[348911868,1736871078593,-1161.34,0.00012159,2]
[348911869,1736871078603,-1071.23,0.00012159,2]
[348911870,1736871078614,-789.98,0.00012159,2]
[348911871,1736871078624,-500.0,0.00012159,2]
[348911872,1736871078634,-1106.63,0.00012159,2]
[348911873,1736871078645,-1112.53,0.00012159,2]
[348911874,1736871078656,-500.0,0.00012159,2]
[348911875,1736871078667,-1838.88,0.00012159,2]
[348911876,1736871078679,-932.16,0.00012159,2]
[348911877,1736871078690,-500.0,0.00012159,2]
[348911878,1736871078701,-500.0,0.00012159,2]
[348911879,1736871078711,-500.0,0.00012159,2]
[348911880,1736871078722,-500.0,0.00012159,2]
[348911881,1736871078732,-976.4,0.00012159,2]
[348911882,1736871078742,-1337.66,0.00012159,2]
[348911883,1736871078752,-500.0,0.00012159,2]
[348911884,1736871078762,-572.39,0.00012159,2]
[348911885,1736871078772,-500.0,0.00012159,2]
[348911886,1736871078783,-758.83,0.00012159,2]
[348911887,1736871078793,-1232.64,0.00012159,2]
[348911888,1736871078803,-500.0,0.00012159,2]
[348911889,1736871078813,-1161.72,0.00012159,2]
[348911890,1736871078823,-500.0,0.00012159,2]
[348911891,1736871078833,-1402.03,0.00012159,2]
[348911892,1736871078842,-500.0,0.00012159,2]
[348911893,1736871078853,-500.0,0.00012159,2]
[348911894,1736871078863,-1098.11,0.00012159,2]
[348911895,1736871078873,-3138.43,0.00012159,2]
[348911896,1736871078883,-500.0,0.00012159,2]
[348911897,1736871078892,-659.72,0.00012159,2]
[348911898,1736871078903,-986.15,0.00012159,2]
[348911899,1736871078913,-500.0,0.00012159,2]
[348911900,1736871078924,-1032.34,0.00012159,2]
[348911901,1736871078937,-3452.91,0.00012159,2]
[348911902,1736871078947,-1606.61,0.00012159,2]
[348911903,1736871078958,-500.0,0.00012159,2]
[348911904,1736871078973,-500.0,0.00012159,2]
[348911905,1736871078983,-1003.31,0.00012159,2]
[348911906,1736871078994,-979.54,0.00012159,2]
[348911907,1736871079005,-756.85,0.00012159,2]
[348911908,1736871079015,-4038.71,0.00012159,2]
[348911909,1736871079026,-1623.91,0.00012159,2]
[348911910,1736871079036,-500.0,0.00012159,2]
[348911911,1736871079047,-507.27,0.00012159,2]
[348911912,1736871079058,-500.0,0.00012159,2]
[348911913,1736871079068,-1966.64,0.00012159,2]
[348911914,1736871079078,-986.12,0.00012159,2]
[348911915,1736871079089,-1121.12,0.0001216,2]
[348911916,1736871079101,-500.0,0.0001216,2]
[348911917,1736871079112,-2873.51,0.0001216,2]
[348911918,1736871079124,-2691.6,0.0001216,2]
[348911919,1736871079135,-170.45123195,0.0001219,2]
[348911920,1736871079147,-170.45123195,0.0001219,2]
[348911921,1736871079157,-170.45123195,0.0001219,2]
[348911922,1736871079167,-170.45123195,0.0001219,2]
[348911923,1736871079178,-170.45123195,0.0001219,2]
[348911924,1736871079189,-170.45123195,0.0001219,2]
[348911925,1736871079200,-170.45123195,0.0001219,2]
[348911926,1736871079215,-170.45123195,0.0001219,2]
[348911927,1736871079226,-170.45123195,0.0001219,2]
[348911928,1736871079237,-170.45123195,0.0001219,2]
[348911929,1736871079248,-170.45123195,0.0001219,2]
[348911930,1736871079260,-170.45123195,0.0001219,2]
[348911931,1736871079271,-170.45123195,0.0001219,2]
[348911932,1736871079283,-170.45123195,0.0001219,2]
[348911933,1736871079294,-170.45123195,0.0001219,2]
[348911934,1736871079305,-170.45123195,0.0001219,2]
[348911935,1736871079315,-170.45123195,0.0001219,2]
[348911936,1736871079326,-170.45123195,0.0001219,2]
[348911937,1736871079336,-170.45123195,0.0001219,2]
[348911938,1736871079346,-170.45,0.0001219,2]
[348911939,1736871079357,-820.42192635,0.0001219,2]
[348911940,1736871079368,-820.42192635,0.0001219,2]
[348911941,1736871079379,-820.42192635,0.0001219,2]
[348911942,1736871079390,-820.42192635,0.0001219,2]
[348911943,1736871079401,-820.42192635,0.0001219,2]
[348911944,1736871079412,-820.42192635,0.0001219,2]
[348911945,1736871079424,-820.42192635,0.0001219,2]
[348911946,1736871079434,-820.42192635,0.0001219,2]
[348911947,1736871079445,-820.42192635,0.0001219,2]
[348911948,1736871079455,-820.42192635,0.0001219,2]
[348911949,1736871079469,-820.42192635,0.0001219,2]
[348911950,1736871079480,-820.42192635,0.0001219,2]
[348911951,1736871079490,-820.42192635,0.0001219,2]
[348911952,1736871079501,-820.42192635,0.0001219,2]
[348911953,1736871079511,-820.42192635,0.0001219,2]
[348911954,1736871079522,-820.42192635,0.0001219,2]
[348911955,1736871079533,-820.42192635,0.0001219,2]
[348911956,1736871079543,-820.42192635,0.0001219,2]
[348911957,1736871079553,-820.42192635,0.0001219,2]
[348911958,1736871079563,-820.42,0.0001219,2]
[348911959,1736871079574,-3648.35,0.0001219,2]
[348911960,1736871079584,-500.0,0.00012191,2]
[348911961,1736871079595,-1024.77,0.00012191,2]
[348911962,1736871079606,-2000.0,0.000122,2]
[348911963,1736871079617,-894.8228,0.000122,2]
[348911964,1736871079628,-1982.02132263,0.00012229,2]
[348911965,1736871079639,-508.5,0.00012288,2]
[348911966,1736871079650,-500.0,0.00012288,2]
[348911967,1736871079665,-500.0,0.00012288,2]
[348911968,1736871079675,-500.0,0.00012288,2]
[348911969,1736871079687,-500.0,0.00012288,2]
[348911970,1736871079698,-500.0,0.00012288,2]
[348911971,1736871079708,-500.0,0.00012288,2]
[348911972,1736871079720,-500.0,0.00012288,2]
[348911973,1736871079730,-500.0,0.00012288,2]
[348911974,1736871079740,-500.0,0.00012288,2]
[348911975,1736871079750,-500.0,0.00012288,2]
[348911976,1736871079761,-500.0,0.00012288,2]
[348911977,1736871079772,-34043.91267951,0.0001229,2]
[348911978,1736871079782,-2000.0,0.00012299,2]
[348911979,1736871079792,-1000.0,0.00012299,2]
[348911980,1736871079802,-995.42391114,0.000123,2]
[348911981,1736871079813,-200.0,0.000123,2]
[348911982,1736871079824,-1760.13569846,0.00012314,2]
[348911983,1736871079835,-231.95039045,0.00012315,2]
[348911984,1736871079844,-1058.6375628,0.0001232,2]
[348911985,1736871079854,-175.6516435,0.0001232,2]
[348911986,1736871079865,-2856.47,0.00012323,2]
[348911987,1736871079875,-758.96,0.00012323,2]
[348911988,1736871079885,-500.0,0.00012323,2]
[348911989,1736871079896,-500.0,0.00012323,2]
[348911990,1736871079907,-500.0,0.00012323,2]
[348911991,1736871079918,-500.0,0.00012323,2]
[348911992,1736871079930,-909.28,0.00012323,2]
[348911993,1736871079940,-500.0,0.00012323,2]
[348911994,1736871079951,-1419.13,0.00012323,2]
[348911995,1736871079963,-580.83,0.00012323,2]
[348911996,1736871079974,-1079.36,0.00012323,2]
[348911997,1736871079985,-500.0,0.00012323,2]
[348911998,1736871079996,-781.46,0.00012323,2]
[348911999,1736871080007,-1965.67,0.00012323,2]
[348912000,1736871080017,-770.01,0.00012323,2]
[348912001,1736871080027,-846.81,0.00012323,2]
[348912002,1736871080038,-500.0,0.00012323,2]
[348912003,1736871080048,-2006.35,0.00012323,2]
[348912004,1736871080058,-654.46,0.00012323,2]
[348912005,1736871080068,-500.0,0.00012323,2]
[348912006,1736871080080,-901.18,0.00012323,2]
[348912007,1736871080090,-500.0,0.00012323,2]
[348912008,1736871080101,-500.0,0.00012323,2]
[348912009,1736871080112,-1306.8,0.00012323,2]